[Event "November 21 Early 2023"]
[Site "https://www.chess.com"]
[Date "2023.11.21"]
[Round "5"]
[White "HeroWilczek"]
[Black "Pumpkin_in_moonlight"]
[Result "0-1"]
[Board "176"]
[TimeControl "180+1"]
[WhiteElo "2463"]
[BlackElo "2291"]
[WhiteClock "0:00:28"]
[BlackClock "0:00:17"]

1. Nf3 {[%clk 0:03:00]}  Nf6 {[%clk 0:02:58]} 2. b3 {[%clk 0:03:01]}  d6 {[%clk 0:02:50]} 3. Bb2 {[%clk 0:03:01]}  e5 {[%clk 0:02:49]} 4. g3 {[%clk 0:02:55]}  Be7 {[%clk 0:02:44]} 5. c4 {[%clk 0:02:54]}  Nc6 {[%clk 0:02:42]} 6. Bg2 {[%clk 0:02:55]}  h6 {[%clk 0:02:38]} 7. O-O {[%clk 0:02:53]}  Bf5 {[%clk 0:02:32]} 8. d4 {[%clk 0:02:53]}  exd4 {[%clk 0:02:26]} 9. Nxd4 {[%clk 0:02:53]}  Nxd4 {[%clk 0:02:23]} 10. Qxd4 {[%clk 0:02:50]}  Rb8 {[%clk 0:02:20]} 11. e4 {[%clk 0:02:41]}  Bh7 {[%clk 0:02:14]} 12. Nc3 {[%clk 0:02:35]}  c5 {[%clk 0:01:39]} 13. Qd2 {[%clk 0:02:31]}  O-O {[%clk 0:01:38]} 14. Rad1 {[%clk 0:02:28]}  Qc8 {[%clk 0:01:25]} 15. Rfe1 {[%clk 0:02:27]}  Rd8 {[%clk 0:01:21]} 16. Nb5 {[%clk 0:02:22]}  a6 {[%clk 0:01:09]} 17. Bxf6 {[%clk 0:02:11]}  Bxf6 {[%clk 0:01:09]} 18. Nxd6 {[%clk 0:02:09]}  Qe6 {[%clk 0:01:07]} 19. e5 {[%clk 0:01:33]}  Bxe5 {[%clk 0:01:04]} 20. Rxe5 {[%clk 0:00:59]}  Qxe5 {[%clk 0:01:02]} 21. Qd5 {[%clk 0:00:59]}  Qxd5 {[%clk 0:00:33]} 22. Rxd5 {[%clk 0:01:00]}  b6 {[%clk 0:00:30]} 23. f4 {[%clk 0:00:58]}  Rd7 {[%clk 0:00:26]} 24. Bh3 {[%clk 0:00:58]}  Re7 {[%clk 0:00:26]} 25. Bf5 {[%clk 0:00:49]}  Bxf5 {[%clk 0:00:23]} 26. Nxf5 {[%clk 0:00:50]}  Re2 {[%clk 0:00:22]} 27. a4 {[%clk 0:00:46]}  Rbe8 {[%clk 0:00:20]} 28. Rd6 {[%clk 0:00:32]}  Rb2 {[%clk 0:00:19]} 29. Rxb6 {[%clk 0:00:28]}  Re1# {[%clk 0:00:17]} 0-1

[Event "November 21 Early 2023"]
[Site "https://www.chess.com"]
[Date "2023.11.21"]
[Round "5"]
[White "Bychkov, Vladimir"]
[Black "Nissinen, Niilo Man"]
[Result "1-0"]
[Board "179"]
[TimeControl "180+1"]
[WhiteFideId "24151513"]
[BlackFideId "30950767"]
[WhiteElo "2224"]
[BlackElo "1854"]
[WhiteTeam "RUS"]
[BlackTeam "HKG"]
[WhiteClock "0:00:59"]
[BlackClock "0:00:00"]

1. d4 {[%clk 0:03:00]}  Nf6 {[%clk 0:02:58]} 2. c4 {[%clk 0:02:59]}  e6 {[%clk 0:02:58]} 3. Nf3 {[%clk 0:02:53]}  b6 {[%clk 0:02:56]} 4. a3 {[%clk 0:02:51]}  Bb7 {[%clk 0:02:54]} 5. Nc3 {[%clk 0:02:50]}  d5 {[%clk 0:02:54]} 6. cxd5 {[%clk 0:02:51]}  Nxd5 {[%clk 0:02:54]} 7. e3 {[%clk 0:02:51]}  Be7 {[%clk 0:02:53]} 8. Bb5+ {[%clk 0:02:47]}  c6 {[%clk 0:02:50]} 9. Bd3 {[%clk 0:02:46]}  O-O {[%clk 0:02:49]} 10. h4 {[%clk 0:02:46]}  Nxc3 {[%clk 0:02:45]} 11. bxc3 {[%clk 0:02:46]}  c5 {[%clk 0:02:46]} 12. h5 {[%clk 0:02:46]}  h6 {[%clk 0:02:42]} 13. e4 {[%clk 0:02:46]}  Ba6 {[%clk 0:02:22]} 14. Bxa6 {[%clk 0:02:35]}  Nxa6 {[%clk 0:02:22]} 15. Rh3 {[%clk 0:02:35]}  cxd4 {[%clk 0:02:16]} 16. cxd4 {[%clk 0:02:33]}  Qc7 {[%clk 0:02:09]} 17. Rg3 {[%clk 0:02:29]}  Kh8 {[%clk 0:02:08]} 18. Bb2 {[%clk 0:02:25]}  Qf4 {[%clk 0:01:57]} 19. Qe2 {[%clk 0:02:17]}  b5 {[%clk 0:01:11]} 20. Bc1 {[%clk 0:02:10]}  Qc7 {[%clk 0:01:09]} 21. Kf1 {[%clk 0:01:58]}  Qc3 {[%clk 0:01:04]} 22. Bb2 {[%clk 0:01:54]}  Qc7 {[%clk 0:00:48]} 23. Qe3 {[%clk 0:01:46]}  Rac8 {[%clk 0:00:35]} 24. Kg1 {[%clk 0:01:45]}  Qc2 {[%clk 0:00:28]} 25. Bc1 {[%clk 0:01:28]}  Qc3 {[%clk 0:00:28]} 26. Rb1 {[%clk 0:01:20]}  Qxe3 {[%clk 0:00:27]} 27. Bxe3 {[%clk 0:01:21]}  b4 {[%clk 0:00:23]} 28. axb4 {[%clk 0:01:18]}  Nxb4 {[%clk 0:00:24]} 29. Ne5 {[%clk 0:01:13]}  Rb8 {[%clk 0:00:20]} 30. Nd7 {[%clk 0:01:12]}  a6 {[%clk 0:00:12]} 31. Nxb8 {[%clk 0:01:06]}  Rxb8 {[%clk 0:00:11]} 32. d5 {[%clk 0:01:07]}  Bd6 {[%clk 0:00:09]} 33. Rf3 {[%clk 0:01:06]}  e5 {[%clk 0:00:08]} 34. Rxf7 {[%clk 0:01:06]}  a5 {[%clk 0:00:04]} 35. Rd7 {[%clk 0:01:06]}  Bf8 {[%clk 0:00:03]} 36. Ra7 {[%clk 0:01:03]}  Rc8 {[%clk 0:00:02]} 37. Rxa5 {[%clk 0:01:02]}  Nc2 {[%clk 0:00:00]} 38. Rc1 {[%clk 0:00:59]} 1-0

[Event "November 21 Early 2023"]
[Site "https://www.chess.com"]
[Date "2023.11.21"]
[Round "5"]
[White "Kovalevsky, Stanislav"]
[Black "Andersson, Bjorn 1971"]
[Result "1-0"]
[Board "182"]
[TimeControl "180+1"]
[WhiteFideId "13508598"]
[BlackFideId "1702114"]
[WhiteElo "2092"]
[BlackElo "2172"]
[WhiteTeam "FID"]
[BlackTeam "SWE"]
[WhiteClock "0:00:09"]
[BlackClock "0:01:02"]

1. e4 {[%clk 0:02:55]}  c5 {[%clk 0:03:00]} 2. c3 {[%clk 0:02:55]}  d5 {[%clk 0:03:00]} 3. exd5 {[%clk 0:02:55]}  Qxd5 {[%clk 0:03:00]} 4. d4 {[%clk 0:02:55]}  Nf6 {[%clk 0:02:59]} 5. Nf3 {[%clk 0:02:56]}  Bg4 {[%clk 0:02:59]} 6. Be2 {[%clk 0:02:56]}  Nbd7 {[%clk 0:02:57]} 7. c4 {[%clk 0:02:40]}  Qh5 {[%clk 0:02:56]} 8. h3 {[%clk 0:02:37]}  Bxf3 {[%clk 0:02:55]} 9. Bxf3 {[%clk 0:02:37]}  Qg6 {[%clk 0:02:55]} 10. Nc3 {[%clk 0:02:16]}  cxd4 {[%clk 0:02:46]} 11. Nb5 {[%clk 0:02:16]}  Rc8 {[%clk 0:02:40]} 12. Qxd4 {[%clk 0:01:52]}  e5 {[%clk 0:02:39]} 13. Nd6+ {[%clk 0:01:48]}  Bxd6 {[%clk 0:02:38]} 14. Qxd6 {[%clk 0:01:49]}  e4 {[%clk 0:02:36]} 15. Be2 {[%clk 0:01:44]}  Qxg2 {[%clk 0:02:26]} 16. Rf1 {[%clk 0:01:36]}  Rc6 {[%clk 0:02:26]} 17. Qb4 {[%clk 0:01:32]}  Rb6 {[%clk 0:02:20]} 18. Qa3 {[%clk 0:01:26]}  a6 {[%clk 0:02:08]} 19. Be3 {[%clk 0:01:24]}  Rc6 {[%clk 0:02:05]} 20. O-O-O {[%clk 0:01:22]}  Qxh3 {[%clk 0:02:00]} 21. Kb1 {[%clk 0:01:19]}  Qe6 {[%clk 0:02:00]} 22. Rg1 {[%clk 0:01:08]}  g6 {[%clk 0:01:56]} 23. Rg5 {[%clk 0:01:06]}  h6 {[%clk 0:01:53]} 24. Rgd5 {[%clk 0:00:55]}  Qe7 {[%clk 0:01:48]} 25. Qc3 {[%clk 0:00:48]}  O-O {[%clk 0:01:45]} 26. Bxh6 {[%clk 0:00:46]}  Rd8 {[%clk 0:01:43]} 27. Rg5 {[%clk 0:00:20]}  b5 {[%clk 0:01:37]} 28. Rdg1 {[%clk 0:00:18]}  Kh7 {[%clk 0:01:36]} 29. Rh1 {[%clk 0:00:17]}  bxc4 {[%clk 0:01:30]} 30. Bf8+ {[%clk 0:00:16]}  Kg8 {[%clk 0:01:21]} 31. Bxe7 {[%clk 0:00:16]}  Re8 {[%clk 0:01:20]} 32. Bxf6 {[%clk 0:00:14]}  Nxf6 {[%clk 0:01:20]} 33. Rh6 {[%clk 0:00:13]}  Kg7 {[%clk 0:01:19]} 34. Rh1 {[%clk 0:00:12]}  Rd6 {[%clk 0:01:16]} 35. Bxc4 {[%clk 0:00:11]}  Rc8 {[%clk 0:01:15]} 36. Qb3 {[%clk 0:00:11]}  e3 {[%clk 0:01:11]} 37. fxe3 {[%clk 0:00:11]}  Ne4 {[%clk 0:01:10]} 38. Rg2 {[%clk 0:00:10]}  Rd2 {[%clk 0:01:09]} 39. Rhg1 {[%clk 0:00:09]}  Rcd8 {[%clk 0:01:08]} 40. Bxf7 {[%clk 0:00:09]}  Rxg2 {[%clk 0:01:04]} 41. Rxg2 {[%clk 0:00:10]}  Nd2+ {[%clk 0:01:03]} 42. Rxd2 {[%clk 0:00:10]}  Rxd2 {[%clk 0:01:04]} 43. Bc4 {[%clk 0:00:10]}  Rf2 {[%clk 0:01:03]} 44. Qb7+ {[%clk 0:00:09]}  Kh6 {[%clk 0:01:03]} 45. Qxa6 {[%clk 0:00:10]}  Rf6 {[%clk 0:01:02]} 46. Qxf6 {[%clk 0:00:09]} 1-0

[Event "November 21 Early 2023"]
[Site "https://www.chess.com"]
[Date "2023.11.21"]
[Round "5"]
[White "LLariMarc"]
[Black "Rios Escobar, Adan"]
[Result "0-1"]
[Board "183"]
[TimeControl "180+1"]
[BlackFideId "3403645"]
[WhiteElo "2260"]
[BlackElo "2420"]
[BlackTeam "CHI"]
[WhiteClock "0:01:19"]
[BlackClock "0:00:07"]

1. d4 {[%clk 0:03:00]}  Nf6 {[%clk 0:01:46]} 2. Nf3 {[%clk 0:03:00]}  g6 {[%clk 0:01:46]} 3. c4 {[%clk 0:03:00]}  Bg7 {[%clk 0:01:46]} 4. Nc3 {[%clk 0:03:01]}  d5 {[%clk 0:01:46]} 5. cxd5 {[%clk 0:03:00]}  Nxd5 {[%clk 0:01:46]} 6. e4 {[%clk 0:03:01]}  Nxc3 {[%clk 0:01:46]} 7. bxc3 {[%clk 0:03:02]}  c5 {[%clk 0:01:46]} 8. Rb1 {[%clk 0:03:00]}  O-O {[%clk 0:01:41]} 9. h4 {[%clk 0:02:58]}  Nc6 {[%clk 0:01:38]} 10. d5 {[%clk 0:02:57]}  Ne5 {[%clk 0:01:28]} 11. Nxe5 {[%clk 0:02:56]}  Bxe5 {[%clk 0:01:29]} 12. Rb3 {[%clk 0:02:52]}  e6 {[%clk 0:01:24]} 13. f4 {[%clk 0:02:52]}  Bc7 {[%clk 0:01:19]} 14. Bc4 {[%clk 0:02:48]}  a6 {[%clk 0:01:18]} 15. a4 {[%clk 0:02:47]}  b5 {[%clk 0:01:17]} 16. axb5 {[%clk 0:02:48]}  axb5 {[%clk 0:01:15]} 17. Bxb5 {[%clk 0:02:49]}  exd5 {[%clk 0:01:14]} 18. Qxd5 {[%clk 0:02:48]}  Ra1 {[%clk 0:01:07]} 19. O-O {[%clk 0:02:45]}  Qxh4 {[%clk 0:01:00]} 20. Qxc5 {[%clk 0:02:25]}  Rxc1 {[%clk 0:01:00]} 21. Qxc7 {[%clk 0:02:23]}  Rxf1+ {[%clk 0:00:47]} 22. Bxf1 {[%clk 0:02:24]}  Qe1 {[%clk 0:00:46]} 23. Rb4 {[%clk 0:01:44]}  Ba6 {[%clk 0:00:40]} 24. Rc4 {[%clk 0:01:44]}  Rc8 {[%clk 0:00:25]} 25. Qxc8+ {[%clk 0:01:44]}  Bxc8 {[%clk 0:00:25]} 26. Rxc8+ {[%clk 0:01:45]}  Kg7 {[%clk 0:00:25]} 27. f5 {[%clk 0:01:42]}  Qe3+ {[%clk 0:00:23]} 28. Kh1 {[%clk 0:01:40]}  Qxe4 {[%clk 0:00:18]} 29. fxg6 {[%clk 0:01:41]}  hxg6 {[%clk 0:00:18]} 30. Rc4 {[%clk 0:01:40]}  Qe1 {[%clk 0:00:14]} 31. Kg1 {[%clk 0:01:39]}  g5 {[%clk 0:00:14]} 32. Rc6 {[%clk 0:01:31]}  Qe3+ {[%clk 0:00:11]} 33. Kh1 {[%clk 0:01:30]}  Qe1 {[%clk 0:00:10]} 34. Kg1 {[%clk 0:01:30]}  f5 {[%clk 0:00:09]} 35. c4 {[%clk 0:01:27]}  g4 {[%clk 0:00:09]} 36. Rc7+ {[%clk 0:01:20]}  Kf6 {[%clk 0:00:08]} 37. Rc6+ {[%clk 0:01:18]}  Kg5 {[%clk 0:00:08]} 38. Rc8 {[%clk 0:01:19]}  g3 {[%clk 0:00:07]} 39. Rg8+ {[%clk 0:01:20]}  Kf4 {[%clk 0:00:07]} 40. Rxg3 {[%clk 0:01:19]}  Kxg3 {[%clk 0:00:07]} 0-1

[Event "November 21 Early 2023"]
[Site "https://www.chess.com"]
[Date "2023.11.21"]
[Round "5"]
[White "Xie, Bryan"]
[Black "Awoki, Daniel Teidi"]
[Result "0-1"]
[Board "185"]
[TimeControl "180+1"]
[WhiteFideId "30941296"]
[BlackFideId "2100827"]
[WhiteElo "2033"]
[BlackElo "2077"]
[WhiteTeam "USA"]
[BlackTeam "BRA"]
[WhiteClock "0:00:07"]
[BlackClock "0:00:31"]

1. e4 {[%clk 0:02:12]}  Nf6 {[%clk 0:03:00]} 2. e5 {[%clk 0:02:09]}  Nd5 {[%clk 0:03:00]} 3. d4 {[%clk 0:02:05]}  d6 {[%clk 0:03:00]} 4. Nf3 {[%clk 0:02:05]}  g6 {[%clk 0:02:58]} 5. c4 {[%clk 0:01:46]}  Nb6 {[%clk 0:02:55]} 6. Nc3 {[%clk 0:01:46]}  Bg7 {[%clk 0:02:55]} 7. Bf4 {[%clk 0:01:30]}  O-O {[%clk 0:02:49]} 8. Be2 {[%clk 0:01:29]}  Nc6 {[%clk 0:02:47]} 9. exd6 {[%clk 0:01:23]}  cxd6 {[%clk 0:02:39]} 10. O-O {[%clk 0:01:17]}  e5 {[%clk 0:02:39]} 11. dxe5 {[%clk 0:01:14]}  dxe5 {[%clk 0:02:40]} 12. Be3 {[%clk 0:01:13]}  Qxd1 {[%clk 0:02:37]} 13. Raxd1 {[%clk 0:01:12]}  h6 {[%clk 0:02:34]} 14. Bxb6 {[%clk 0:01:05]}  axb6 {[%clk 0:02:33]} 15. a3 {[%clk 0:01:02]}  Be6 {[%clk 0:02:30]} 16. Nd5 {[%clk 0:01:01]}  Bxd5 {[%clk 0:02:29]} 17. cxd5 {[%clk 0:00:57]}  Nd4 {[%clk 0:02:28]} 18. Nxd4 {[%clk 0:00:47]}  exd4 {[%clk 0:02:27]} 19. Bf3 {[%clk 0:00:48]}  Rac8 {[%clk 0:02:23]} 20. Rc1 {[%clk 0:00:48]}  Rfd8 {[%clk 0:02:22]} 21. Rxc8 {[%clk 0:00:46]}  Rxc8 {[%clk 0:02:22]} 22. d6 {[%clk 0:00:47]}  Rd8 {[%clk 0:02:19]} 23. Bxb7 {[%clk 0:00:47]}  Rxd6 {[%clk 0:02:19]} 24. b4 {[%clk 0:00:47]}  d3 {[%clk 0:02:17]} 25. Rd1 {[%clk 0:00:46]}  d2 {[%clk 0:02:17]} 26. a4 {[%clk 0:00:39]}  Bc3 {[%clk 0:02:15]} 27. a5 {[%clk 0:00:37]}  bxa5 {[%clk 0:02:13]} 28. bxa5 {[%clk 0:00:36]}  Re6 {[%clk 0:02:08]} 29. Rf1 {[%clk 0:00:30]}  Bxa5 {[%clk 0:01:54]} 30. Bf3 {[%clk 0:00:29]}  g5 {[%clk 0:01:43]} 31. g3 {[%clk 0:00:29]}  Kg7 {[%clk 0:01:43]} 32. Kg2 {[%clk 0:00:28]}  Re1 {[%clk 0:01:42]} 33. Bd1 {[%clk 0:00:25]}  f5 {[%clk 0:01:40]} 34. h4 {[%clk 0:00:22]}  g4 {[%clk 0:01:39]} 35. Kg1 {[%clk 0:00:22]}  Kf6 {[%clk 0:01:38]} 36. Kg2 {[%clk 0:00:22]}  Ke5 {[%clk 0:01:38]} 37. Kg1 {[%clk 0:00:22]}  Kd4 {[%clk 0:01:35]} 38. Kg2 {[%clk 0:00:23]}  Kc3 {[%clk 0:01:35]} 39. f3 {[%clk 0:00:23]}  h5 {[%clk 0:01:34]} 40. fxg4 {[%clk 0:00:23]}  fxg4 {[%clk 0:01:31]} 41. Ba4 {[%clk 0:00:20]}  Kb2 {[%clk 0:01:29]} 42. Kf2 {[%clk 0:00:20]}  Bb6+ {[%clk 0:01:26]} 43. Kg2 {[%clk 0:00:19]}  Kc1 {[%clk 0:01:24]} 44. Rf5 {[%clk 0:00:15]}  Re4 {[%clk 0:01:13]} 45. Rf1+ {[%clk 0:00:15]}  Kb2 {[%clk 0:00:57]} 46. Bd1 {[%clk 0:00:15]}  Re1 {[%clk 0:00:48]} 47. Ba4 {[%clk 0:00:14]}  Re2+ {[%clk 0:00:39]} 48. Kh1 {[%clk 0:00:13]}  Bf2 {[%clk 0:00:36]} 49. Bd1 {[%clk 0:00:13]}  Re1 {[%clk 0:00:35]} 50. Kg2 {[%clk 0:00:13]}  Rxd1 {[%clk 0:00:32]} 51. Rxd1 {[%clk 0:00:13]}  Be1 {[%clk 0:00:32]} 52. Kf1 {[%clk 0:00:13]}  Kc2 {[%clk 0:00:30]} 53. Rxe1 {[%clk 0:00:13]}  dxe1=Q+ {[%clk 0:00:30]} 54. Kxe1 {[%clk 0:00:14]}  Kd3 {[%clk 0:00:30]} 55. Kf2 {[%clk 0:00:13]}  Kd2 {[%clk 0:00:30]} 56. Kf1 {[%clk 0:00:13]}  Ke3 {[%clk 0:00:30]} 57. Kg2 {[%clk 0:00:13]}  Ke2 {[%clk 0:00:30]} 58. Kh1 {[%clk 0:00:02]}  Kf1 {[%clk 0:00:29]} 59. Kh2 {[%clk 0:00:03]}  Kf2 {[%clk 0:00:29]} 60. Kh1 {[%clk 0:00:03]}  Kxg3 {[%clk 0:00:29]} 61. Kg1 {[%clk 0:00:04]}  Kxh4 {[%clk 0:00:30]} 62. Kh2 {[%clk 0:00:05]}  g3+ {[%clk 0:00:30]} 63. Kg2 {[%clk 0:00:06]}  Kg4 {[%clk 0:00:31]} 64. Kg1 {[%clk 0:00:06]}  Kh3 {[%clk 0:00:31]} 65. Kh1 {[%clk 0:00:07]}  g2+ {[%clk 0:00:30]} 66. Kg1 {[%clk 0:00:07]}  h4 {[%clk 0:00:31]} 67. Kf2 {[%clk 0:00:07]}  Kh2 {[%clk 0:00:31]} 0-1

[Event "November 21 Early 2023"]
[Site "https://www.chess.com"]
[Date "2023.11.21"]
[Round "5"]
[White "Tsyhanchuk, Stanislav"]
[Black "pinguino120"]
[Result "0-1"]
[Board "186"]
[TimeControl "180+1"]
[WhiteFideId "13505130"]
[WhiteElo "2173"]
[BlackElo "2232"]
[WhiteTeam "BLR"]
[WhiteClock "0:00:17"]
[BlackClock "0:01:10"]

1. e4 {[%clk 0:03:00]}  Nf6 {[%clk 0:02:59]} 2. e5 {[%clk 0:03:00]}  Nd5 {[%clk 0:02:59]} 3. c4 {[%clk 0:03:01]}  Nb6 {[%clk 0:02:59]} 4. d4 {[%clk 0:03:01]}  d6 {[%clk 0:02:59]} 5. f4 {[%clk 0:03:01]}  g6 {[%clk 0:02:57]} 6. Nf3 {[%clk 0:02:59]}  Bg7 {[%clk 0:02:57]} 7. Nc3 {[%clk 0:02:58]}  O-O {[%clk 0:02:57]} 8. Be3 {[%clk 0:02:57]}  Be6 {[%clk 0:02:55]} 9. d5 {[%clk 0:02:50]}  Bg4 {[%clk 0:02:54]} 10. h3 {[%clk 0:02:47]}  Bxf3 {[%clk 0:02:54]} 11. Qxf3 {[%clk 0:02:48]}  dxe5 {[%clk 0:02:54]} 12. f5 {[%clk 0:02:36]}  c6 {[%clk 0:02:36]} 13. O-O-O {[%clk 0:02:32]}  cxd5 {[%clk 0:02:35]} 14. cxd5 {[%clk 0:02:31]}  N8d7 {[%clk 0:02:27]} 15. g4 {[%clk 0:02:27]}  Rc8 {[%clk 0:02:25]} 16. g5 {[%clk 0:02:22]}  e4 {[%clk 0:02:23]} 17. Qxe4 {[%clk 0:02:15]}  Bxc3 {[%clk 0:02:23]} 18. bxc3 {[%clk 0:02:15]}  Rxc3+ {[%clk 0:02:24]} 19. Kb2 {[%clk 0:02:14]}  Na4+ {[%clk 0:02:20]} 20. Qxa4 {[%clk 0:02:12]}  Rxe3 {[%clk 0:02:20]} 21. Qd4 {[%clk 0:02:06]}  Qb6+ {[%clk 0:01:52]} 22. Qxb6 {[%clk 0:02:06]}  Nxb6 {[%clk 0:01:53]} 23. f6 {[%clk 0:01:49]}  exf6 {[%clk 0:01:47]} 24. gxf6 {[%clk 0:01:50]}  Rf3 {[%clk 0:01:47]} 25. d6 {[%clk 0:01:43]}  Rxf6 {[%clk 0:01:45]} 26. Rh2 {[%clk 0:01:26]}  Rd8 {[%clk 0:01:41]} 27. Rhd2 {[%clk 0:01:25]}  Nc8 {[%clk 0:01:27]} 28. d7 {[%clk 0:01:22]}  Nb6 {[%clk 0:01:27]} 29. Rd4 {[%clk 0:01:03]}  Re6 {[%clk 0:01:21]} 30. h4 {[%clk 0:00:35]}  Re7 {[%clk 0:01:20]} 31. Bh3 {[%clk 0:00:34]}  f5 {[%clk 0:01:19]} 32. Bg2 {[%clk 0:00:15]}  Rexd7 {[%clk 0:01:17]} 33. Rxd7 {[%clk 0:00:15]}  Rxd7 {[%clk 0:01:17]} 34. Rxd7 {[%clk 0:00:15]}  Nxd7 {[%clk 0:01:18]} 35. Bxb7 {[%clk 0:00:16]}  f4 {[%clk 0:01:11]} 36. a4 {[%clk 0:00:16]}  h6 {[%clk 0:01:11]} 37. a5 {[%clk 0:00:11]}  g5 {[%clk 0:01:11]} 38. hxg5 {[%clk 0:00:12]}  hxg5 {[%clk 0:01:12]} 39. Kc3 {[%clk 0:00:12]}  Kg7 {[%clk 0:01:12]} 40. Kd4 {[%clk 0:00:12]}  Kf6 {[%clk 0:01:12]} 41. Ke4 {[%clk 0:00:12]}  Nc5+ {[%clk 0:01:11]} 42. Kf3 {[%clk 0:00:11]}  Nxb7 {[%clk 0:01:10]} 43. a6 {[%clk 0:00:12]}  Nc5 {[%clk 0:01:10]} 44. Kg4 {[%clk 0:00:13]}  Nxa6 {[%clk 0:01:10]} 45. Kh5 {[%clk 0:00:13]}  f3 {[%clk 0:01:10]} 46. Kg4 {[%clk 0:00:14]}  f2 {[%clk 0:01:11]} 47. Kh5 {[%clk 0:00:15]}  f1=Q {[%clk 0:01:10]} 48. Kg4 {[%clk 0:00:16]}  Qf4+ {[%clk 0:01:10]} 49. Kh5 {[%clk 0:00:17]}  Qh4# {[%clk 0:01:10]} 0-1

[Event "November 21 Early 2023"]
[Site "https://www.chess.com"]
[Date "2023.11.21"]
[Round "5"]
[White "Gallegos Diaz, Carlos Alberto"]
[Black "Feliz Dotel, Dewar Bienvenido"]
[Result "0-1"]
[Board "195"]
[TimeControl "180+1"]
[WhiteFideId "3900886"]
[BlackFideId "6402801"]
[WhiteElo "2362"]
[BlackElo "2069"]
[WhiteTeam "VEN"]
[BlackTeam "DOM"]
[WhiteClock "0:00:00"]
[BlackClock "0:00:02"]

1. e4 {[%clk 0:03:00]}  e5 {[%clk 0:02:55]} 2. Nf3 {[%clk 0:02:59]}  Nc6 {[%clk 0:02:54]} 3. Bb5 {[%clk 0:02:59]}  Nf6 {[%clk 0:02:53]} 4. Qe2 {[%clk 0:02:57]}  Bd6 {[%clk 0:02:45]} 5. c3 {[%clk 0:02:55]}  O-O {[%clk 0:02:44]} 6. O-O {[%clk 0:02:53]}  Re8 {[%clk 0:02:40]} 7. d3 {[%clk 0:02:52]}  a6 {[%clk 0:02:23]} 8. Ba4 {[%clk 0:02:48]}  b5 {[%clk 0:02:23]} 9. Bb3 {[%clk 0:02:46]}  Na5 {[%clk 0:02:22]} 10. Bc2 {[%clk 0:02:45]}  c5 {[%clk 0:02:21]} 11. Bg5 {[%clk 0:02:30]}  Nc6 {[%clk 0:02:15]} 12. Re1 {[%clk 0:02:24]}  h6 {[%clk 0:02:08]} 13. Bh4 {[%clk 0:02:22]}  Be7 {[%clk 0:02:07]} 14. Nbd2 {[%clk 0:02:14]}  d6 {[%clk 0:02:07]} 15. Nf1 {[%clk 0:02:09]}  Bg4 {[%clk 0:02:06]} 16. Ne3 {[%clk 0:02:01]}  Be6 {[%clk 0:02:00]} 17. a4 {[%clk 0:01:32]}  b4 {[%clk 0:01:53]} 18. Rad1 {[%clk 0:01:28]}  Rc8 {[%clk 0:01:50]} 19. d4 {[%clk 0:01:18]}  exd4 {[%clk 0:01:41]} 20. cxd4 {[%clk 0:01:16]}  cxd4 {[%clk 0:01:35]} 21. Nxd4 {[%clk 0:01:13]}  Nxd4 {[%clk 0:01:29]} 22. Rxd4 {[%clk 0:01:13]}  b3 {[%clk 0:01:28]} 23. Bb1 {[%clk 0:01:00]}  Qb6 {[%clk 0:01:22]} 24. Red1 {[%clk 0:00:53]}  Rc6 {[%clk 0:01:00]} 25. h3 {[%clk 0:00:30]}  Rec8 {[%clk 0:00:59]} 26. Nd5 {[%clk 0:00:27]}  Bxd5 {[%clk 0:00:50]} 27. exd5 {[%clk 0:00:28]}  R6c7 {[%clk 0:00:50]} 28. Rf4 {[%clk 0:00:19]}  Rc1 {[%clk 0:00:32]} 29. Kh2 {[%clk 0:00:14]}  Rxd1 {[%clk 0:00:24]} 30. Qxd1 {[%clk 0:00:15]}  Qc7 {[%clk 0:00:13]} 31. Qd3 {[%clk 0:00:14]}  g6 {[%clk 0:00:04]} 32. Bxf6 {[%clk 0:00:14]}  Bxf6 {[%clk 0:00:04]} 33. Rxf6 {[%clk 0:00:15]}  Qe7 {[%clk 0:00:04]} 34. Rf3 {[%clk 0:00:15]}  Qe5+ {[%clk 0:00:04]} 35. g3 {[%clk 0:00:15]}  Rc1 {[%clk 0:00:03]} 36. Rxf7 {[%clk 0:00:14]}  Kxf7 {[%clk 0:00:02]} 37. Qxg6+ {[%clk 0:00:14]}  Ke7 {[%clk 0:00:02]} 38. Bf5 {[%clk 0:00:10]}  Qe1 {[%clk 0:00:02]} 39. Qg7+ {[%clk 0:00:08]}  Ke8 {[%clk 0:00:01]} 40. Qg8+ {[%clk 0:00:04]}  Ke7 {[%clk 0:00:02]} 41. Qg7+ {[%clk 0:00:03]}  Ke8 {[%clk 0:00:02]} 42. Qg8+ {[%clk 0:00:03]}  Ke7 {[%clk 0:00:02]} 43. Qh7+ {[%clk 0:00:03]}  Kf6 {[%clk 0:00:02]} 44. Qg6+ {[%clk 0:00:03]}  Ke5 {[%clk 0:00:02]} 45. Qe6+ {[%clk 0:00:02]}  Kd4 {[%clk 0:00:02]} 46. Qf6+ {[%clk 0:00:00]}  Kc5 {[%clk 0:00:02]} 0-1

[Event "November 21 Early 2023"]
[Site "https://www.chess.com"]
[Date "2023.11.21"]
[Round "5"]
[White "Zepeda Berlanga, Jan Enrique"]
[Black "secrethawk1"]
[Result "0-1"]
[Board "197"]
[TimeControl "180+1"]
[WhiteFideId "5132355"]
[WhiteElo "1680"]
[BlackElo "2376"]
[WhiteTeam "MEX"]
[WhiteClock "0:00:05"]
[BlackClock "0:01:05"]

1. e4 {[%clk 0:03:00]}  c5 {[%clk 0:02:57]} 2. Nf3 {[%clk 0:02:49]}  e6 {[%clk 0:02:56]} 3. Nc3 {[%clk 0:02:45]}  Nc6 {[%clk 0:02:54]} 4. d3 {[%clk 0:02:40]}  Nf6 {[%clk 0:02:52]} 5. Bg5 {[%clk 0:02:39]}  d6 {[%clk 0:02:50]} 6. Be2 {[%clk 0:02:38]}  Be7 {[%clk 0:02:50]} 7. Qd2 {[%clk 0:02:37]}  h6 {[%clk 0:02:51]} 8. Bxf6 {[%clk 0:02:34]}  Bxf6 {[%clk 0:02:50]} 9. O-O {[%clk 0:02:35]}  O-O {[%clk 0:02:49]} 10. a4 {[%clk 0:02:31]}  a6 {[%clk 0:02:49]} 11. Rfd1 {[%clk 0:02:19]}  Rb8 {[%clk 0:02:48]} 12. Bf1 {[%clk 0:02:09]}  b5 {[%clk 0:02:45]} 13. axb5 {[%clk 0:02:06]}  axb5 {[%clk 0:02:46]} 14. h3 {[%clk 0:01:30]}  d5 {[%clk 0:02:41]} 15. exd5 {[%clk 0:01:27]}  exd5 {[%clk 0:02:42]} 16. d4 {[%clk 0:01:24]}  c4 {[%clk 0:02:14]} 17. g3 {[%clk 0:01:14]}  Re8 {[%clk 0:02:09]} 18. Bg2 {[%clk 0:01:06]}  Bf5 {[%clk 0:02:08]} 19. Nh4 {[%clk 0:00:50]}  Bxh4 {[%clk 0:02:04]} 20. gxh4 {[%clk 0:00:50]}  Qxh4 {[%clk 0:02:03]} 21. Nxd5 {[%clk 0:00:46]}  Rbd8 {[%clk 0:01:58]} 22. c3 {[%clk 0:00:36]}  Bxh3 {[%clk 0:01:49]} 23. Nf4 {[%clk 0:00:31]}  Bxg2 {[%clk 0:01:43]} 24. Nxg2 {[%clk 0:00:32]}  Qg4 {[%clk 0:01:40]} 25. Ra6 {[%clk 0:00:29]}  Ne5 {[%clk 0:01:37]} 26. Kf1 {[%clk 0:00:17]}  Nf3 {[%clk 0:01:20]} 27. Qc2 {[%clk 0:00:16]}  Nh2+ {[%clk 0:01:12]} 28. Kg1 {[%clk 0:00:16]}  Re2 {[%clk 0:01:11]} 29. Rd2 {[%clk 0:00:11]}  Nf3+ {[%clk 0:01:06]} 30. Kf1 {[%clk 0:00:05]}  Rxd2 {[%clk 0:01:05]} 0-1